bitfinex/quotes_SOLUSD_20240712
["timestamp","ask_amount","ask_price","bid_price","bid_amount"]
[1720746916295,29.33,135.58,135.5,55.0]
[1720746916296,29.33,135.58,135.52,7.3786]
[1720746916480,20.0,135.57,135.53,45.0]
[1720746916788,29.33,135.58,135.53,55.0]
[1720746916997,29.33,135.58,135.53,45.0]
[1720746917178,36.7059,135.58,135.53,45.0]
[1720746917383,7.3764,135.57,135.49,10.0]
[1720746917598,29.33,135.58,135.46,7.3818]
[1720746917599,7.3784,135.53,135.46,7.3818]
[1720746918096,29.33,135.52,135.46,10.0]
[1720746918281,29.33,135.52,135.41,2.36184194]
[1720746918282,29.33,135.54,135.48,17.3807]
[1720746918595,29.33,135.54,135.47,22.6546]
[1720746918777,29.33,135.54,135.48,10.0]
[1720746918980,29.33,135.54,135.49,7.3805]
[1720746919214,29.33,135.56,135.5,7.38]
[1720746919493,20.0,135.55,135.51,45.0]
[1720746919670,18.4357,135.61,135.51,55.0]
[1720746919671,7.3763,135.57,135.51,55.0]
[1720746920001,29.33,135.55,135.51,45.0]
[1720746920191,36.7074,135.55,135.51,45.0]
[1720746920396,29.33,135.55,135.48,20.0]
[1720746920698,29.33,135.52,135.47,22.6546]
[1720746920898,36.7091,135.52,135.47,22.6546]
[1720746921197,7.3798,135.51,135.47,22.6546]
[1720746921394,7.3802,135.5,135.46,10.0]
[1720746921598,7.3816,135.48,135.44,21.8574]
[1720746921909,7.3806,135.49,135.43,7.3838]
[1720746922206,49.33,135.48,135.41,24.21924194]
[1720746922381,49.33,135.48,135.42,10.0]
[1720746922574,20.0,135.48,135.42,10.0]
[1720746922777,20.0,135.48,135.41,24.21924194]
[1720746922999,20.0,135.5,135.41,24.21924194]
[1720746923218,7.3828,135.45,135.41,2.36184194]
[1720746923382,7.384,135.43,135.41,2.36184194]
[1720746923585,7.3844,135.42,135.41,2.36184194]
[1720746923778,7.3903,135.32,135.28,10.0]
[1720746924111,22.8429,135.42,135.3,10.0]
[1720746924310,78.0629,135.42,135.32,7.3898]
[1720746924483,22.18,135.39,135.29,6.3768]
[1720746924804,20.0,135.38,135.3,10.0]
[1720746925007,7.3883,135.35,135.3,10.0]
[1720746925182,38.4674,135.38,135.29,6.3768]
[1720746925497,7.3889,135.34,135.29,6.3768]
[1720746925697,7.3892,135.34,135.26,20.0]
[1720746925883,7.3882,135.36,135.29,7.3913]
[1720746926085,20.0,135.35,135.29,7.391]
[1720746926284,7.3888,135.34,135.28,17.3919]
[1720746926485,101.80339108,135.42,135.3,10.0]
[1720746926682,7.388,135.36,135.31,7.3903]
[1720746926907,0.34,135.41,135.28,10.0]
[1720746927104,20.34,135.41,135.29,7.391]
[1720746927307,18.4685,135.37,135.28,10.0]
[1720746927494,7.3892,135.34,135.28,17.3919]
[1720746927805,7.3896,135.33,135.27,7.3925]
[1720746928002,18.4716,135.35,135.26,7.393]
[1720746928194,20.0,135.36,135.26,10.0]
[1720746928395,7.3893,135.33,135.27,7.3925]
[1720746928604,7.3891,135.34,135.26,10.0]
[1720746928896,7.3891,135.34,135.25,17.2477264]
[1720746928897,20.0,135.37,135.3,17.3908]
[1720746929098,7.3881,135.36,135.3,10.0]
[1720746929301,7.3881,135.36,135.31,7.3901]
[1720746929493,7.3882,135.35,135.3,7.3905]
[1720746929688,20.0,135.37,135.27,10.0]
[1720746930104,7.3911,135.3,135.27,10.0]
[1720746930409,18.4725,135.34,135.25,0.8544264]
[1720746930613,20.0,135.33,135.25,8.2479264]
[1720746930791,7.3911,135.3,135.25,8.2479264]
[1720746930986,7.3909,135.31,135.25,0.8544264]
[1720746931186,7.391,135.3,135.25,0.8544264]
[1720746931382,7.3905,135.31,135.26,7.3931]
[1720746931691,18.4725,135.34,135.25,0.8544264]
[1720746931991,7.3906,135.31,135.26,7.3931]
[1720746932202,20.0,135.33,135.25,0.8544264]
[1720746932394,55.07597966,135.33,135.25,0.8544264]
[1720746932720,20.0,135.33,135.25,0.8544264]
[1720746932908,7.3912,135.3,135.25,0.8544264]
[1720746933115,22.66587966,135.36,135.25,10.8544264]
[1720746933291,7.3881,135.36,135.28,10.0]
[1720746933490,7.3882,135.35,135.29,7.391]
[1720746933703,18.4658,135.39,135.29,7.391]
[1720746934007,20.81228193,135.43,135.33,10.0]
[1720746934231,7.3839,135.43,135.38,7.3865]
[1720746934416,33.04,135.45,135.39,45.0]
[1720746934731,33.04,135.45,135.34,10.0]
[1720746934732,33.04,135.45,135.4,7.3853]
[1720746934893,33.04,135.45,135.37,10.0]
[1720746935091,7.3838,135.44,135.38,45.0]
[1720746935310,7.3838,135.44,135.39,7.386]
[1720746935602,7.384,135.43,135.4,45.0]
[1720746935804,33.04,135.45,135.35,7.388]
[1720746935805,7.3851,135.41,135.35,7.388]
[1720746936006,7.3851,135.41,135.36,7.3876]
[1720746936205,33.04,135.45,135.36,52.3876]
[1720746936206,7.3845,135.42,135.36,52.3876]
[1720746936395,33.04,135.45,135.36,45.0]
[1720746936716,7.3849,135.42,135.35,45.0]
[1720746936913,7.385,135.41,135.35,52.3882]
[1720746937211,7.385,135.41,135.35,45.0]
[1720746937406,33.04,135.45,135.35,45.0]
[1720746937712,7.3849,135.42,135.36,7.3876]
[1720746938007,7.3849,135.42,135.37,45.0]
[1720746938214,7.3835,135.44,135.38,1.47726624]
[1720746938407,7.3835,135.44,135.37,45.0]
[1720746938604,33.04,135.45,135.37,52.3871]
[1720746938605,7.3841,135.43,135.37,52.3871]
[1720746938802,7.3839,135.43,135.37,52.3871]
[1720746939108,7.3839,135.43,135.38,7.3864]
[1720746939412,10.81228193,135.47,135.4,7.3854]
[1720746939611,10.81228193,135.47,135.38,7.3864]
[1720746939913,7.3845,135.42,135.39,45.0]
[1720746940207,7.385,135.41,135.36,7.3875]
[1720746940508,51.4991,135.44,135.32,26.1236]
[1720746940809,20.0,135.43,135.32,26.1236]
[1720746941008,20.0,135.43,135.34,10.0]
[1720746941194,18.4615,135.42,135.32,6.1236]
[1720746941394,20.0,135.41,135.33,10.0]
[1720746941614,7.386,135.39,135.34,7.3884]
[1720746941812,7.3856,135.4,135.33,10.0]
[1720746942007,7.3882,135.36,135.3,23.222]
[1720746942311,7.3882,135.36,135.31,7.39]
[1720746942514,20.0,135.39,135.3,15.8312]
[1720746942701,7.3879,135.36,135.31,7.3902]
[1720746943009,20.0,135.39,135.3,15.8312]
[1720746943414,7.3873,135.37,135.32,7.3898]
[1720746943613,7.3871,135.37,135.32,7.3897]
[1720746943797,42.18,135.39,135.3,15.8312]
[1720746943999,20.0,135.39,135.3,15.8312]
[1720746944313,7.3873,135.37,135.32,7.3895]
[1720746944514,0.17,135.38,135.26,10.0]
[1720746944702,7.39,135.32,135.27,7.3922]
[1720746944899,22.35,135.38,135.26,10.0]
[1720746945101,20.0,135.37,135.29,7.3911]
[1720746945401,20.0,135.37,135.25,7.0815264]
[1720746945609,7.3912,135.3,135.25,7.0815264]
[1720746945813,7.3908,135.31,135.26,7.3929]
[1720746946513,40.6525,135.34,135.26,7.3929]
[1720746946721,7.3906,135.31,135.26,7.3929]
[1720746947017,7.3915,135.29,135.25,14.4751264]
[1720746947203,33.21,135.36,135.27,7.3924]
[1720746947397,38.641,135.35,135.25,7.0815264]
[1720746947720,7.3906,135.31,135.26,7.3928]
[1720746948102,18.474,135.33,135.25,0.8544264]
[1720746948301,7.3916,135.29,135.25,0.8544264]
[1720746948510,7.3931,135.26,135.25,0.8544264]
[1720746948710,7.3924,135.28,135.25,0.8544264]
[1720746948908,6.5683,135.31,135.25,0.8544264]
[1720746949258,60.828,135.3,135.25,0.8544264]
[1720746949415,7.3921,135.28,135.25,0.8544264]
[1720746949916,7.3916,135.29,135.25,0.8544264]
[1720746950118,7.392,135.28,135.25,0.8544264]
[1720746950316,20.0,135.3,135.25,0.8544264]
[1720746950513,7.3922,135.28,135.25,0.8544264]
[1720746950706,20.0,135.3,135.25,8.2480264]
[1720746950905,20.0,135.31,135.25,0.8544264]
[1720746951312,7.3921,135.28,135.25,0.8544264]
[1720746951516,20.0,135.31,135.25,0.8544264]
[1720746951818,7.3913,135.3,135.25,8.2479264]
[1720746952015,7.3916,135.29,135.25,0.8544264]
[1720746952321,7.3921,135.28,135.25,0.8544264]
[1720746952698,7.3916,135.29,135.25,0.8544264]
[1720746953221,7.3922,135.28,135.25,0.8544264]
[1720746953712,7.3927,135.27,135.25,0.8544264]
[1720746954814,7.3916,135.29,135.25,0.8544264]
[1720746955016,7.3925,135.28,135.25,0.8544264]
[1720746955230,7.3921,135.28,135.25,0.8544264]
[1720746955406,7.3917,135.29,135.25,0.8544264]
[1720746955611,60.6566,135.31,135.25,0.8544264]
[1720746956101,7.3926,135.27,135.25,0.8544264]
[1720746956920,7.3931,135.26,135.25,0.8544264]
[1720746957103,7.3931,135.26,135.19,0.04383036]
[1720746957104,7.3958,135.22,135.19,0.04383036]
[1720746957309,6.1927,135.24,135.13,10.0204]
[1720746957310,55.22,135.23,135.13,0.0001]
[1720746957508,55.22,135.23,135.11,0.8544264]
[1720746957509,25.9028,135.12,135.11,0.8544264]
[1720746957705,7.4008,135.12,135.11,0.17781201]
[1720746958019,33.04,135.17,135.11,0.17781201]
[1720746958225,27.399,135.16,135.11,0.17781201]
[1720746958397,33.04,135.16,135.06,12.00805228]
[1720746958603,33.04,135.16,135.11,7.4009]
[1720746958902,33.04,135.15,135.06,2.00805228]
[1720746959104,40.4422,135.1,135.06,2.00805228]
[1720746959402,7.4067,135.02,135.0,5.0]
[1720746959613,33.04,135.04,135.0,5.0]
[1720746959903,33.04,135.04,134.97,10.0]
[1720746960107,24.17874452,135.16,134.93,26.1130264]
[1720746960307,33.04,135.1,134.99,10.0]
[1720746960505,7.4014,135.11,135.01,10.0]
[1720746960825,20.0,135.1,134.99,10.0]
[1720746961006,7.63801859,135.15,135.05,10.0]
[1720746961199,33.04,135.18,135.04,16.2892]
[1720746961407,33.04,135.18,135.04,6.2892]
[1720746961408,59.16151775,135.18,135.04,6.2892]
[1720746961609,33.04,135.14,135.04,6.2892]
[1720746961810,33.04,135.14,135.01,10.0]
[1720746962028,40.66731775,135.18,135.04,20.0]
[1720746962329,33.04,135.14,135.02,55.0]
[1720746962502,7.62731775,135.18,135.07,10.0]
[1720746962503,7.4005,135.13,135.07,10.0]
[1720746962702,7.62731775,135.18,135.1,10.0]
[1720746962907,33.04,135.22,135.09,6.3009]
[1720746963125,49.0043,135.24,135.1,45.0]
[1720746963335,33.04,135.22,135.1,45.0]
[1720746963637,7.3979,135.18,135.1,45.0]
[1720746963825,33.04,135.21,135.1,45.0]
[1720746964008,7.3982,135.17,135.1,45.0]
[1720746964416,33.04,135.21,135.11,10.0]
[1720746964622,7.3965,135.2,135.12,45.0]
[1720746964838,40.68524265,135.24,135.12,45.0]
[1720746965045,59.17134265,135.24,135.12,45.0]
[1720746965209,33.04,135.2,135.09,16.3009]
[1720746965727,33.04,135.2,135.11,10.0]
[1720746965919,40.68524265,135.24,135.09,16.3009]
[1720746966116,7.3958,135.22,135.09,16.3009]
[1720746966331,20.0,135.21,135.09,16.3009]
[1720746966517,20.0,135.21,135.1,45.0]
[1720746966719,7.3981,135.17,135.09,16.3009]
[1720746967031,20.0,135.21,135.09,16.3009]
[1720746967236,7.3969,135.2,135.09,16.3009]
[1720746967535,33.04,135.22,135.1,10.17]
[1720746967841,33.04,135.22,135.13,10.0]
[1720746968021,33.04,135.22,135.14,45.0]
[1720746968225,7.3962,135.21,135.14,55.0]
[1720746968449,33.04,135.22,135.14,55.0]
[1720746968664,7.64524265,135.24,135.15,1.47766704]
[1720746968813,7.64524265,135.24,135.15,11.47766704]
[1720746969014,7.3966,135.2,135.14,45.0]
[1720746969215,7.64524265,135.24,135.14,45.0]
[1720746969654,7.3965,135.2,135.14,45.0]
[1720746969817,7.64524265,135.24,135.14,45.0]
[1720746970334,7.64524265,135.24,135.09,16.3009]
[1720746970335,20.0,135.23,135.09,16.3009]
[1720746970529,33.21,135.22,135.11,10.0]
[1720746970740,7.3977,135.18,135.11,10.0]
[1720746971041,18.4911,135.21,135.11,10.0]
[1720746971245,20.0,135.2,135.11,10.0]
[1720746971423,7.4003,135.13,135.09,6.3009]
[1720746971764,33.04,135.18,135.05,6.127]
[1720746971959,7.4007,135.13,135.06,10.0]
[1720746972248,20.0,135.17,135.06,10.0]
[1720746972416,20.0,135.17,135.09,10.0]
[1720746972622,55.4671,135.22,135.07,10.0]
[1720746972623,18.4919,135.2,135.07,10.0]
[1720746972815,53.04,135.19,135.09,10.0]
[1720746973017,6.5871,135.26,135.13,10.0]
[1720746973246,7.3957,135.22,135.14,6.127]
[1720746973447,7.3975,135.18,135.14,6.127]
[1720746973947,51.5266,135.24,135.14,6.127]
[1720746974115,7.398,135.18,135.14,6.127]
[1720746974450,33.04,135.24,135.1,6.127]
[1720746974451,7.3992,135.15,135.1,6.127]
[1720746975141,7.3999,135.14,135.1,6.127]
[1720746975346,33.04,135.2,135.1,6.127]
[1720746975347,7.3986,135.17,135.1,6.127]
[1720746975518,7.3986,135.17,135.1,16.127]
[1720746975725,7.3986,135.17,135.1,6.127]
[1720746975726,7.3982,135.17,135.1,6.127]
[1720746975935,51.5263,135.24,135.12,10.0]
[1720746976437,7.3976,135.18,135.1,16.127]
[1720746976652,7.3976,135.18,135.11,46.64618745]
[1720746976848,7.3976,135.18,135.11,46.47618745]
[1720746977037,7.3983,135.17,135.11,45.0]
[1720746977240,7.3986,135.16,135.1,16.127]
[1720746977626,7.3982,135.17,135.1,16.127]
[1720746977941,7.3987,135.16,135.1,16.127]
[1720746978241,7.3987,135.16,135.1,6.127]
[1720746978242,7.399,135.16,135.1,6.127]
[1720746978540,36.9766,135.23,135.1,6.127]
[1720746978742,7.3993,135.15,135.1,6.127]
[1720746978940,7.3998,135.14,135.1,6.127]
[1720746979339,7.3993,135.15,135.1,6.127]
[1720746979645,7.3997,135.14,135.1,6.127]
[1720746979944,7.3996,135.15,135.1,6.127]
[1720746980243,7.3988,135.16,135.1,6.127]
[1720746980439,7.3987,135.16,135.1,6.127]
[1720746980626,7.3992,135.15,135.1,6.127]
[1720746981238,7.3987,135.16,135.1,6.127]
[1720746981543,18.4926,135.19,135.1,6.127]
[1720746981945,18.4926,135.19,135.1,5.627]
[1720746981946,7.3993,135.15,135.1,5.627]
[1720746982616,33.04,135.2,135.1,5.627]
[1720746982617,7.4002,135.14,135.1,5.627]
[1720746982821,36.9837,135.2,135.05,10.0]
[1720746983021,33.04,135.17,135.07,10.0]
[1720746983246,20.0,135.16,135.07,10.0]
[1720746983943,18.4909,135.21,135.09,10.0]
[1720746984154,7.396,135.21,135.12,10.0]
[1720746984443,7.3953,135.22,135.14,10.0]
[1720746984824,7.3953,135.22,135.15,6.1416]
[1720746985038,7.3953,135.22,135.16,45.0]
[1720746985241,7.396,135.21,135.16,45.0]
[1720746985933,7.3956,135.22,135.17,16.0546]
[1720746986136,7.3941,135.25,135.18,55.0]
[1720746986449,7.3922,135.28,135.2,10.0]
[1720746986772,7.391,135.3,135.22,10.0]
[1720746987054,7.391,135.3,135.23,51.1416]
[1720746987227,7.3889,135.34,135.27,10.0]
[1720746987433,7.3889,135.34,135.28,45.47812495]
[1720746988340,7.67241593,135.37,135.28,45.47812495]
[1720746988645,51.5074,135.38,135.28,44.0]
[1720746989228,7.3904,135.31,135.28,44.0]
[1720746989430,19.3301264,135.32,135.23,6.1416]
[1720746989647,0.8544264,135.32,135.24,45.0]
[1720746989852,0.8544264,135.32,135.25,10.17]
[1720746990066,0.8544264,135.32,135.23,26.1416]
[1720746990231,7.392,135.29,135.23,6.1416]
[1720746990435,33.8944264,135.32,135.23,6.1416]
[1720746990951,7.3911,135.3,135.23,16.1416]
[1720746991129,20.0,135.31,135.23,16.1416]
[1720746991330,33.8944264,135.32,135.23,6.1416]
[1720746991729,18.4783,135.3,135.23,6.1416]
[1720746991927,7.3947,135.24,135.18,6.0661]
[1720746992146,7.3948,135.23,135.18,6.0661]
[1720746992461,18.4835,135.26,135.18,6.0661]
[1720746992647,20.17,135.25,135.13,6.0661]
[1720746992951,7.4019,135.1,135.09,6.0661]
[1720746993150,33.21,135.24,135.06,16.1041]
[1720746993151,33.04,135.16,135.06,16.1041]
[1720746993350,7.4012,135.12,135.06,16.1041]
[1720746993545,33.04,135.16,135.06,26.1041]
[1720746993744,20.0,135.15,135.06,26.1041]
[1720746994047,7.4009,135.12,135.06,16.1041]
[1720746994276,33.04,135.16,135.06,16.1041]
[1720746994558,20.0,135.15,135.06,16.1041]
[1720746994931,7.3998,135.14,135.06,16.1041]
[1720746995232,7.3998,135.14,135.06,26.1041]
[1720746995427,20.0,135.15,135.06,16.1041]
[1720746995632,20.0,135.13,135.06,16.1041]
[1720746995834,20.0,135.15,135.07,1.19837121]
[1720746996054,40.6,135.16,135.08,1.19828249]
[1720746996734,40.6,135.2,135.08,11.19828249]
[1720746996956,40.6,135.2,135.08,10.0]
[1720746997246,40.6,135.2,135.09,45.0]
[1720746997454,81.2,135.24,135.1,10.0]
[1720746997652,81.2,135.24,135.11,45.0]
[1720746997967,40.6,135.2,135.11,45.0]
[1720746998133,18.4885,135.22,135.11,45.0]
[1720746998336,7.3975,135.18,135.11,45.0]
[1720746998535,7.3974,135.19,135.11,45.0]
[1720746998752,7.3975,135.18,135.11,45.0]
[1720746999234,7.3981,135.17,135.11,45.0]
[1720746999435,18.4885,135.22,135.11,45.0]
[1720746999633,7.3969,135.2,135.12,10.0]
[1720746999836,40.6,135.24,135.13,45.0]
[1720747000056,7.3952,135.23,135.14,10.0]
[1720747000354,18.4872,135.23,135.13,45.0]
[1720747000658,7.3963,135.21,135.13,44.5]
[1720747000837,7.3952,135.23,135.14,10.0]
[1720747001031,7.3952,135.23,135.16,10.0]
[1720747001245,40.6,135.24,135.15,6.1962]
[1720747001547,40.6,135.24,135.13,44.5]
[1720747001751,7.3965,135.2,135.13,44.5]
[1720747002053,7.397,135.19,135.13,44.5]
[1720747002557,18.4893,135.22,135.13,44.5]
[1720747002736,20.0,135.21,135.1,16.1962]
[1720747003043,7.3979,135.18,135.11,45.0]
[1720747003243,20.0,135.21,135.1,17.67602445]
[1720747003451,7.3987,135.16,135.1,16.1962]
[1720747003645,7.3987,135.16,135.1,6.1962]
[1720747003860,7.3981,135.17,135.1,16.1962]
[1720747004154,7.3981,135.17,135.11,1.47995565]
[1720747004450,20.0,135.21,135.1,16.1962]
[1720747004451,7.4002,135.14,135.1,6.1962]
[1720747004656,7.4003,135.13,135.1,6.1962]
[1720747005329,7.4008,135.12,135.1,6.1962]
[1720747005539,7.4008,135.12,135.06,16.1041]
[1720747005743,7.4014,135.11,135.06,16.1041]
[1720747006163,18.5002,135.14,135.06,16.1041]
[1720747007257,7.4012,135.12,135.06,26.1041]
[1720747007463,7.4004,135.13,135.06,26.1041]
[1720747008084,59.0958,135.17,135.06,26.1041]
[1720747008377,59.0958,135.17,135.09,10.0]
[1720747008378,40.6,135.17,135.09,10.0]
[1720747008542,55.4707,135.21,135.1,45.0]
[1720747008750,7.3982,135.17,135.1,45.0]
[1720747008966,7.3982,135.17,135.11,10.0]
[1720747009297,7.3976,135.18,135.12,45.0]
[1720747009472,7.3985,135.17,135.12,45.0]
[1720747009787,59.0862,135.24,135.15,6.127]
[1720747010286,27.85941526,135.28,135.18,10.0]
[1720747010570,40.6,135.31,135.2,10.0]
[1720747010571,7.3932,135.26,135.2,10.0]
[1720747010774,7.3932,135.26,135.21,1.47872299]
[1720747010958,48.26096404,135.31,135.21,45.0]
[1720747011160,7.3927,135.27,135.21,45.0]
[1720747011349,7.3935,135.26,135.21,45.0]
[1720747011872,66.73766404,135.31,135.22,10.0]
[1720747012166,7.393,135.27,135.23,45.0]
[1720747012374,18.4792,135.29,135.2,10.0]
[1720747012544,7.3941,135.25,135.21,45.0]
[1720747012871,7.3951,135.23,135.15,31.3402]
[1720747013082,7.3946,135.24,135.17,10.0]
[1720747013257,7.3946,135.24,135.19,10.0]
[1720747013470,7.3946,135.24,135.17,10.0]
[1720747013873,7.3942,135.24,135.17,10.0]
[1720747014082,7.3937,135.25,135.19,10.0]
[1720747014251,7.3937,135.25,135.2,45.0]
[1720747014579,7.3948,135.23,135.18,45.0]
[1720747014881,18.4805,135.28,135.18,45.0]
[1720747015055,20.0,135.27,135.18,45.0]
[1720747015254,7.3951,135.23,135.18,45.0]
[1720747015479,7.3953,135.22,135.18,45.0]
[1720747015985,18.4833,135.26,135.18,45.0]
[1720747016152,7.3944,135.24,135.19,10.0]
[1720747016348,20.0,135.27,135.2,45.0]
[1720747016659,7.3948,135.23,135.18,45.0]
[1720747016854,18.4818,135.27,135.18,45.0]
[1720747017059,18.4875,135.23,135.15,21.3402]
[1720747017374,7.3976,135.18,135.15,6.127]
[1720747017574,7.3969,135.2,135.15,6.127]
[1720747018561,18.4875,135.23,135.15,6.127]
[1720747018752,20.0,135.22,135.15,6.127]
[1720747018981,7.3981,135.17,135.1,6.4894]
[1720747019174,7.3988,135.16,135.11,10.0]
[1720747019374,18.4929,135.19,135.11,10.0]
[1720747019581,20.0,135.18,135.11,10.0]
[1720747019908,7.3989,135.16,135.11,10.0]
[1720747020251,7.3993,135.15,135.1,16.4894]
[1720747020472,18.4963,135.17,135.1,6.4894]
[1720747020679,20.0,135.16,135.1,6.4894]
[1720747020863,7.3993,135.15,135.1,16.4894]
[1720747021063,20.0,135.16,135.1,16.4894]
[1720747021263,7.3991,135.15,135.1,16.4894]
[1720747021464,7.4002,135.13,135.1,16.4894]
[1720747021670,7.4011,135.12,135.1,6.4894]
[1720747021855,7.4007,135.13,135.1,6.4894]
[1720747022456,18.497,135.16,135.1,6.4894]
[1720747022663,7.4004,135.13,135.1,6.4894]
[1720747023277,7.4009,135.12,135.1,6.4894]
[1720747023664,40.6,135.16,135.02,260.3]
[1720747023880,43.0113,135.17,135.0,10.0]
[1720747023881,59.1029,135.12,135.0,20.0]
[1720747024067,18.5052,135.1,135.0,10.0]
[1720747024260,7.4042,135.06,135.0,10.0]
[1720747024478,7.4043,135.06,135.0,20.0]
[1720747024679,18.5052,135.1,135.02,10.0]
[1720747024978,7.403,135.08,135.02,10.0]
[1720747025151,20.0,135.09,135.02,10.0]
[1720747025356,7.404,135.07,135.02,10.0]
[1720747025764,20.0,135.09,135.0,20.0]
[1720747025966,18.5069,135.09,135.0,20.0]
[1720747026165,7.4046,135.06,135.0,20.0]
[1720747026367,48.0013,135.12,135.06,10.0]
[1720747026567,27.79429304,135.15,135.04,10.0]
[1720747026883,37.014,135.09,135.0,20.0]
[1720747027068,40.6,135.09,135.04,10.0]
[1720747027264,14.53251873,135.2,135.07,10.0]
[1720747027265,7.3995,135.15,135.07,10.0]
[1720747027475,40.6,135.17,135.09,10.0]
[1720747027678,40.6,135.17,135.11,10.0]
[1720747027859,7.3999,135.14,135.09,10.0]
[1720747028177,7.3986,135.16,135.08,6.4359]
[1720747028379,7.3999,135.14,135.09,45.0]
[1720747028557,59.0957,135.17,135.09,45.0]
[1720747028754,7.4009,135.12,135.08,6.4359]
[1720747028974,7.4015,135.11,135.08,6.4359]
[1720747029476,18.499,135.15,135.03,6.5235]
[1720747029681,7.4019,135.11,135.05,10.0]
[1720747030069,7.402,135.1,135.03,16.5235]
[1720747030374,7.4034,135.08,135.03,16.5235]
[1720747030567,7.4041,135.06,135.03,6.5235]
[1720747030764,40.6,135.13,135.03,16.5235]
[1720747030962,40.6,135.17,135.07,10.0]
[1720747031178,7.4004,135.13,135.07,10.0]
[1720747031381,7.4014,135.11,135.05,10.0]
[1720747031578,7.4023,135.1,135.05,10.0]
[1720747031799,7.4041,135.06,135.03,6.5235]
[1720747031960,40.6,135.13,135.04,55.0]
[1720747032166,40.6,135.17,135.07,10.0]
[1720747032368,7.3996,135.15,135.08,45.0]
[1720747032600,40.6,135.17,135.08,45.0]
[1720747032881,7.399,135.16,135.09,10.0]
[1720747033184,7.4,135.14,135.1,45.0]
[1720747033481,40.6,135.17,135.05,10.0]
[1720747033482,18.4978,135.16,135.05,10.0]
[1720747033684,7.4008,135.12,135.06,45.0]
[1720747033986,7.3986,135.16,135.09,10.0]
[1720747034188,47.9982,135.17,135.1,45.0]
[1720747034479,40.6,135.17,135.05,10.0]
[1720747034687,18.5,135.14,135.06,45.0]
[1720747034869,7.3998,135.14,135.07,10.0]
[1720747035075,7.3998,135.14,135.08,45.0]
[1720747035298,7.4003,135.13,135.08,45.0]
[1720747035470,7.3998,135.14,135.08,45.0]
[1720747036177,7.399,135.16,135.09,10.0]
[1720747036362,7.3986,135.16,135.1,45.0]
[1720747036567,7.65496929,135.19,135.12,16.0391]
[1720747036782,18.4876,135.23,135.13,45.0]
[1720747037097,7.397,135.19,135.13,45.0]
[1720747037278,7.3964,135.2,135.14,10.0]
[1720747037484,7.3964,135.2,135.15,45.0]
[1720747037782,40.6,135.24,135.17,10.0]
[1720747037964,7.3948,135.23,135.18,45.0]
[1720747038163,40.6,135.24,135.15,10.0]
[1720747038388,7.397,135.19,135.16,45.0]
[1720747038971,18.4888,135.22,135.13,10.0]
[1720747039180,40.6,135.24,135.15,10.0]
[1720747039499,40.6,135.24,135.19,10.0]